bitfinex-derivatives/quotes_ETHF0:USTF0_20250101
["timestamp","ask_amount","ask_price","bid_price","bid_amount"]
[1735725500312,5.02164647,3334.9,3334.8,4.02365839]
[1735725501017,4.72122647,3334.9,3334.3,0.30048]
[1735725501214,0.30047,3334.5,3334.4,0.30048]
[1735725501419,0.30047,3334.5,3334.4,0.61762722]
[1735725501619,0.30047,3334.5,3334.4,1.69935429]
[1735725502115,4.73074859,3334.5,3334.4,1.38220647]
[1735725502420,4.73074859,3334.5,3334.4,1.69926631]
[1735725503522,5.15724859,3334.6,3334.5,0.30047]
[1735725503715,4.73074859,3334.6,3334.5,1.69925631]
[1735725504519,4.73074859,3334.7,3334.6,0.30046]
[1735725504717,4.73074859,3334.7,3334.6,1.69924631]
[1735725507720,4.73074859,3334.7,3334.6,0.61751984]
[1735725507925,4.73074859,3334.7,3334.6,1.38218647]
[1735725508123,4.73074859,3334.7,3334.6,1.69924889]
[1735725510720,4.73074859,3334.7,3334.6,1.38218647]
[1735725510922,4.73074859,3334.7,3334.6,1.69919759]
[1735725511524,3.54727684,3334.7,3334.6,14.41133025]
[1735725512830,2.84727684,3334.7,3334.6,14.76893919]
[1735725513127,2.14777684,3334.7,3334.6,19.76893919]
[1735725513328,2.14777684,3334.7,3334.6,20.85066566]
[1735725514329,4.73074859,3335.3,3335.2,0.3004]
[1735725514527,4.73074859,3335.3,3335.2,2.90775438]
[1735725515133,4.73074859,3335.3,3335.2,2.59112647]
[1735725515725,0.4524,3335.6,3335.3,0.30039]
[1735725515726,4.73074859,3335.4,3335.3,0.30039]
[1735725518135,4.73074859,3335.5,3335.3,0.30039]
[1735725518328,4.73074859,3335.5,3335.4,1.08172647]
[1735725518633,4.73074859,3335.5,3335.4,1.38211647]
[1735725519332,6.36583574,3335.6,3335.4,1.08172647]
[1735725519535,6.36583574,3335.6,3335.5,0.30038]
[1735725520737,0.4524,3335.6,3335.5,0.30038]
[1735725521831,5.17587293,3335.6,3335.5,0.30038]
[1735725525934,4.72347293,3335.6,3335.5,0.30038]
[1735725526643,4.72347293,3335.7,3335.6,0.30037]
[1735725526837,4.72347293,3335.7,3335.6,1.38209647]
[1735725528142,2.36041284,3335.7,3335.6,1.38209647]
[1735725531642,2.81651284,3335.8,3335.6,1.38209647]
[1735725532144,2.81651284,3335.8,3335.7,0.30036]
[1735725532846,0.4561,3335.8,3335.7,0.30036]
[1735725534143,5.17957293,3335.8,3335.7,0.30036]
[1735725535147,0.4561,3335.8,3335.7,0.30036]
[1735725535646,0.4561,3335.8,3335.7,1.38208647]
[1735725537542,0.75645,3335.8,3335.7,1.38208647]
[1735725541446,3.11410927,3335.8,3335.7,1.38208647]
[1735725541654,0.30036,3335.7,3335.6,0.30036]
[1735725541948,0.30036,3335.7,3335.6,1.38208647]
[1735725544344,0.30036,3335.7,3335.6,0.30036]
[1735725544543,0.30036,3335.7,3335.6,1.38208647]
[1735725544749,2.81375927,3335.8,3335.6,1.38208647]
[1735725544950,3.11410927,3335.8,3335.6,1.38208647]
[1735725547358,2.81375927,3335.8,3335.7,0.30036]
[1735725548751,5.17957293,3335.8,3335.7,0.30036]
[1735725550948,5.17957293,3335.8,3335.7,1.38208647]
[1735725551149,0.4561,3335.8,3335.7,1.38208647]
[1735725552056,6.37123574,3335.9,3335.8,0.30035]
[1735725554251,6.37123574,3335.9,3335.8,0.61732487]
[1735725554648,6.37123574,3335.9,3335.8,0.30035]
[1735725554955,6.37123574,3335.9,3335.8,0.61745197]
[1735725557648,5.18147042,3335.9,3335.8,0.61745197]
[1735725557951,5.18147042,3335.9,3335.8,0.61746511]
[1735725558551,0.4578,3335.9,3335.8,0.61746511]
[1735725559052,0.4578,3335.9,3335.8,0.30035]
[1735725563155,0.4578,3335.9,3335.8,1.50835]
[1735725563357,0.4578,3335.9,3335.8,2.59007647]
[1735725566161,0.4578,3335.9,3335.8,2.90714918]
[1735725567358,0.4578,3335.9,3335.8,2.90713252]
[1735725567755,3.2078,3336.0,3335.9,0.30034]
[1735725567955,3.2078,3336.0,3335.9,0.61739605]
[1735725568155,3.2078,3336.0,3335.9,1.08059605]
[1735725572264,3.2078,3336.0,3335.9,0.76354]
[1735725572465,3.2078,3336.0,3335.9,1.08054871]
[1735725573268,3.2078,3336.0,3335.9,0.76354]
[1735725574468,9.1154689,3336.0,3335.9,0.76354]
[1735725576858,9.1154689,3336.0,3335.9,0.30034]
[1735725579472,6.75206537,3336.0,3335.9,0.30034]
[1735725580172,6.75206537,3336.0,3335.9,2.46379294]
[1735725580565,6.75206537,3336.0,3335.9,1.69897698]
[1735725580765,3.54426537,3336.0,3335.9,1.69897698]
[1735725581070,3.54426537,3336.0,3335.9,3.13830886]
[1735725581470,2.3625812,3336.0,3335.9,3.13830886]
[1735725582672,2.3625812,3336.0,3335.9,3.13821315]
[1735725583372,3.98626537,3336.1,3335.9,2.83787315]
[1735725583573,3.98626537,3336.1,3336.0,0.61716687]
[1735725584179,4.28658537,3336.1,3336.0,0.31683687]
[1735725584380,0.30033,3336.0,3335.8,7.38304653]
[1735725584678,0.30033,3336.0,3335.7,11.79784653]
[1735725584679,0.30034,3336.0,3335.7,11.79784653]
[1735725584885,0.30034,3336.0,3335.8,0.30035]
[1735725585079,0.30034,3336.0,3335.7,11.79784653]
[1735725585382,0.30034,3335.9,3335.7,11.79784653]
[1735725585582,0.30034,3335.9,3335.8,1.08172647]
[1735725585981,5.02602716,3335.9,3335.8,1.08172647]
[1735725586183,4.72568716,3335.9,3335.8,1.08172647]
[1735725586383,5.02602716,3335.9,3335.8,1.08172647]
[1735725586789,5.02602716,3335.9,3335.8,0.38202647]
[1735725586983,5.02602716,3335.9,3335.8,1.08172647]
[1735725588886,0.30034,3335.9,3335.8,1.08172647]
[1735725589188,6.2080089,3336.0,3335.8,1.38207647]
[1735725589890,5.9076689,3336.0,3335.8,1.38207647]
[1735725590188,9.8577989,3336.1,3335.8,1.38207647]
[1735725590389,9.8577989,3336.1,3336.0,1.08172647]
[1735725590589,9.5574689,3336.1,3336.0,1.38205647]
[1735725590789,9.5574689,3336.1,3336.0,1.08172647]
[1735725591191,9.8577889,3336.1,3336.0,1.08172647]
[1735725593789,3.95012,3336.1,3336.0,1.08172647]
[1735725596087,0.30034,3335.9,3335.8,0.30034]
[1735725596288,0.30034,3335.9,3335.8,1.38206647]
[1735725596586,0.30034,3336.0,3335.9,0.30034]
[1735725596785,0.30034,3336.0,3335.9,1.38206647]
[1735725596995,3.6498,3336.1,3336.0,0.30033]
[1735725597291,0.442,3336.1,3336.0,0.30033]
[1735725600199,0.442,3336.1,3336.0,1.6972109]
[1735725600396,0.442,3336.1,3336.0,2.1318109]
[1735725600900,0.442,3336.1,3336.0,0.61544861]
[1735725601103,0.442,3336.1,3336.0,2.58905647]
[1735725602192,0.74232,3336.1,3336.0,1.207]
[1735725602394,0.30034,3335.9,3335.8,1.08172647]
[1735725602794,0.30034,3335.9,3335.8,1.38207647]
[1735725602994,0.30034,3335.9,3335.8,1.08172647]
[1735725604092,0.30034,3335.9,3335.8,1.38207647]
[1735725604296,3.6498,3336.1,3335.8,1.08172647]
[1735725604497,3.6498,3336.1,3336.0,1.08172647]
[1735725604794,3.6498,3336.1,3336.0,1.38205647]
[1735725605798,0.442,3336.1,3336.0,1.38205647]
[1735725607297,0.74232,3336.1,3336.0,1.38205647]
[1735725607492,0.74232,3336.1,3336.0,1.08172647]
[1735725607698,0.30035,3335.8,3335.7,0.30035]
[1735725608004,0.30035,3335.8,3335.7,1.38208647]
[1735725608206,0.30035,3335.8,3335.7,0.30036]
[1735725610601,0.30035,3335.9,3335.8,0.30034]
[1735725610899,7.38922967,3336.0,3335.8,0.30034]
[1735725611306,0.30034,3335.9,3335.8,0.30034]
[1735725612305,10.29668967,3336.1,3335.7,2.28370565]
[1735725612511,7.08888967,3336.1,3336.0,2.58403565]
[1735725612809,8.71977128,3336.2,3336.1,0.30032]
[1735725612810,7.53828967,3336.2,3336.1,0.30032]
[1735725613611,0.4494,3336.2,3336.1,0.30032]
[1735725613814,0.4494,3336.2,3335.7,2.28370565]
[1735725614107,0.30034,3335.9,3335.8,0.30034]
[1735725614404,0.30034,3336.0,3335.7,2.28370565]
[1735725614609,3.6572,3336.2,3335.7,2.28370565]
[1735725614810,0.4494,3336.2,3336.1,0.30032]
[1735725615806,0.30032,3336.1,3336.0,0.30033]
[1735725616707,0.30032,3336.1,3335.7,2.28370565]
[1735725616708,0.4494,3336.2,3335.7,2.28370565]
[1735725616912,0.30033,3336.0,3335.9,0.30034]
[1735725617611,4.72529976,3336.0,3335.5,0.4352]
[1735725617811,0.30035,3335.9,3335.7,0.30035]
[1735725618012,4.72529976,3336.0,3335.4,10.29183277]
[1735725618207,4.72529976,3336.0,3335.6,0.30036]
[1735725618208,0.30036,3335.8,3335.6,0.30036]
[1735725618406,3.6424,3335.7,3335.4,7.08403277]
[1735725618710,3.6424,3335.7,3334.5,19.7372098]
[1735725618711,4.72529976,3335.6,3335.1,7.08403277]
[1735725618914,0.3004,3335.2,3335.1,7.08403277]
[1735725620710,0.30041,3335.1,3334.8,0.4352]
[1735725620913,0.73501,3335.1,3334.8,0.4352]
[1735725621110,0.73501,3335.1,3334.9,0.30043]
[1735725621419,0.4346,3335.1,3335.0,0.30042]
[1735725621616,5.9066247,3335.2,3334.9,2.28370565]
[1735725621816,5.9066247,3335.2,3335.1,0.30041]
[1735725622006,4.72216617,3335.2,3335.1,0.30041]
[1735725622921,7.92996617,3335.3,3335.2,0.3004]
[1735725623419,4.72216617,3335.3,3335.2,5.79190565]
[1735725624214,3.53937963,3335.3,3335.2,5.49150565]
[1735725624414,3.53937963,3335.3,3335.2,5.79190565]
[1735725625124,3.53937963,3335.3,3335.2,6.25330565]
[1735725625818,3.53937963,3335.4,3335.3,0.30039]
[1735725626019,3.53937963,3335.4,3335.3,0.72919]
[1735725628116,4.72216617,3335.5,3335.3,0.4288]
[1735725628317,4.72216617,3335.5,3335.4,0.30038]
[1735725629122,0.30039,3335.4,3335.2,3.2078]
[1735725629319,0.4643,3335.3,3335.0,1.206]
[1735725629527,0.9055,3335.3,3335.0,1.206]
[1735725629821,1.2059,3335.3,3335.0,1.50642]
[1735725630021,0.9055,3335.3,3335.0,1.206]
[1735725630327,0.9055,3335.3,3335.2,0.3004]
[1735725630917,0.9055,3335.3,3335.1,0.30041]
[1735725631118,5.16786617,3335.4,3335.0,1.206]
[1735725631518,5.46825617,3335.4,3335.1,0.30041]
[1735725631820,3.54045295,3335.3,3335.2,0.3004]
[1735725637033,3.84084295,3335.3,3335.2,0.3004]
[1735725637334,3.54045295,3335.3,3335.2,0.3004]
[1735725638919,3.84085295,3335.3,3335.1,0.30041]
[1735725639325,0.3004,3335.2,3335.1,0.30041]
[1735725641333,4.72216617,3335.3,3334.9,2.28370565]
[1735725641519,0.30042,3335.1,3335.0,0.30042]
[1735725642326,0.30042,3335.1,3334.8,0.30044]
[1735725642533,0.892,3335.0,3334.9,0.30042]
[1735725643326,1.19242,3335.0,3334.9,0.30043]
[1735725643521,0.892,3335.0,3334.9,0.30043]
[1735725645331,4.43101487,3335.0,3334.9,0.30043]
[1735725646230,3.25122385,3335.0,3334.9,0.30043]
[1735725646927,3.25122385,3335.0,3334.7,3.2078]
[1735725647132,0.4223,3334.9,3334.7,3.2078]
[1735725647430,0.30044,3334.8,3334.7,3.2078]
[1735725649136,3.83945487,3334.8,3334.7,3.2078]
[1735725649835,3.83945487,3334.8,3334.5,0.30047]
[1735725649836,0.30045,3334.7,3334.4,0.30048]
[1735725650036,0.30046,3334.6,3334.4,0.30048]
[1735725650335,0.4418,3334.5,3334.3,0.30048]
[1735725650633,0.4365,3334.4,3334.3,0.30048]
[1735725658435,2.82403321,3334.6,3334.1,2.28370565]
[1735725658436,2.35853321,3334.6,3334.1,2.28370565]
[1735725658632,2.35853321,3334.6,3334.5,0.30047]
[1735725659032,2.35853321,3334.6,3334.5,1.19397]
[1735725659638,2.35853321,3334.7,3334.6,0.30046]
[1735725663639,2.35853321,3335.1,3334.5,4.5532]
[1735725663844,2.35853321,3335.1,3335.0,2.58412565]
[1735725664044,2.35853321,3335.1,3335.0,3.79012565]
[1735725664839,5.56633321,3335.2,3335.1,0.30041]
[1735725665038,5.56633321,3335.2,3335.1,0.72191]
[1735725665250,5.56633321,3335.2,3335.1,1.18201]
[1735725666748,0.30042,3335.0,3334.6,4.71966793]
[1735725666955,0.30042,3335.0,3334.6,5.02011793]
[1735725667243,5.56633321,3335.2,3334.6,5.02011793]
[1735725667445,0.30042,3335.1,3334.8,0.30043]
[1735725667637,5.86674321,3335.2,3334.8,0.30043]
[1735725668244,2.35853321,3335.0,3334.8,0.30044]
[1735725668443,2.35853321,3335.0,3334.9,0.30043]
[1735725668744,2.35853321,3335.0,3334.7,2.28370565]
[1735725669248,2.35853321,3335.1,3334.8,0.4532]
[1735725669442,2.35853321,3335.1,3335.0,0.30042]
[1735725673452,6.74681487,3335.2,3334.8,0.4532]
[1735725673652,6.74681487,3335.2,3335.1,0.30041]
[1735725676257,3.2078,3335.2,3334.6,5.17186793]
[1735725676451,3.2078,3335.2,3335.0,0.30041]
[1735725677357,3.5413406,3335.1,3335.0,0.30041]
[1735725678057,3.5413406,3335.1,3334.9,0.30043]
[1735725678561,7.92996617,3335.2,3334.7,2.28370565]
[1735725678756,7.92996617,3335.2,3334.6,0.4481]
[1735725679153,0.30042,3335.1,3334.9,0.30043]
[1735725680059,3.54161441,3335.0,3334.9,0.30043]
[1735725698765,3.54161441,3335.0,3334.6,5.60126793]
[1735725698964,0.4317,3334.9,3334.6,4.71966793]
[1735725699170,0.30045,3334.7,3334.6,4.71966793]
[1735725699369,1.21324,3334.8,3334.6,5.02011793]
[1735725699673,1.21324,3334.8,3334.7,1.08151268]
[1735725700276,0.9128,3334.8,3334.7,1.38196268]
[1735725700678,5.63496617,3334.8,3334.7,1.38196268]
[1735725702178,0.9128,3334.8,3334.7,1.38196268]
[1735725704477,3.99410404,3334.8,3334.7,1.38196268]
[1735725704674,3.54540404,3334.8,3334.7,1.38196268]
[1735725705877,3.54540404,3334.8,3334.7,6.10163061]
[1735725706078,3.54540404,3334.8,3334.7,6.45912829]
[1735725706376,1.6831662,3334.8,3334.7,12.54064097]
[1735725706576,4.51795637,3335.0,3334.9,0.30043]
[1735725706778,4.51795637,3335.0,3334.9,6.02875304]
[1735725706969,4.51795637,3335.3,3334.9,5.72832304]
[1735725707173,4.51795637,3335.3,3335.2,1.38191268]
[1735725708178,0.8944,3335.5,3335.2,1.08151268]
[1735725708478,0.8944,3335.5,3335.4,0.30038]
[1735725717187,0.8944,3335.5,3335.4,2.58433819]
[1735725718784,0.4602,3335.7,3335.6,0.30037]
[1735725718986,1.3332,3335.7,3335.6,0.30037]
[1735725720392,0.873,3335.7,3335.6,0.30037]
[1735725721887,0.4227,3335.9,3335.8,0.30035]
[1735725723791,0.9005,3336.0,3335.7,5.49175819]
[1735725724089,3.2078,3336.4,3336.2,0.30031]
[1735725724292,1.3384,3336.6,3336.3,3.48895819]
[1735725724584,1.3384,3336.6,3336.5,0.30029]
[1735725725187,0.911,3336.6,3336.4,0.30029]
[1735725725390,5.9066247,3336.7,3336.5,0.30028]
[1735725725591,0.435,3336.6,3336.5,0.30028]
[1735725726394,0.9094,3337.0,3336.3,3.48895819]
[1735725726695,0.435,3336.9,3336.6,2.28395819]
[1735725726892,0.435,3336.9,3336.7,0.30026]
[1735725727286,0.435,3336.9,3336.8,0.30026]
[1735725730690,0.435,3336.9,3336.3,3.48895819]
[1735725730891,0.30029,3336.4,3336.1,3.50812]
[1735725731086,1.3106,3336.3,3336.2,1.50531]
[1735725733487,3.50805,3336.9,3336.6,0.30027]
[1735725733692,1.321,3336.8,3336.6,0.30027]
[1735725734097,1.321,3336.8,3336.4,2.28395819]
[1735725734298,1.62126,3336.8,3336.5,0.30028]
[1735725734600,1.321,3336.8,3336.5,0.30029]
[1735725735197,1.321,3336.8,3336.6,0.30027]
[1735725735498,1.321,3336.8,3336.4,2.28395819]
[1735725735695,1.321,3336.8,3336.7,0.30027]
[1735725736292,1.321,3336.8,3336.7,2.58422819]
[1735725742697,0.8587,3336.8,3336.7,2.58422819]
[1735725746204,0.8587,3336.8,3336.7,1.38028759]
[1735725752406,0.8587,3336.8,3336.7,0.30027]
[1735725752606,0.8587,3336.8,3336.7,1.38028759]
[1735725752810,0.8587,3336.8,3336.7,2.58428759]
[1735725760212,4.70074516,3337.6,3336.7,8.36403518]
[1735725760410,4.70074516,3337.6,3337.5,1.38021759]
[1735725760618,4.70074516,3337.6,3337.5,2.58421759]
[1735725762615,0.4272,3337.7,3337.6,0.30019]
[1735725769724,3.95569488,3338.1,3338.0,0.30015]
[1735725769918,4.38019488,3338.1,3338.0,2.58093644]
[1735725771620,4.38019488,3338.1,3337.6,3.95827]
[1735725771621,0.8466,3338.1,3337.6,3.95827]
[1735725771823,0.8466,3338.1,3338.0,0.30015]
[1735725779532,3.83367488,3338.8,3338.0,0.30015]
[1735725779533,3.53359488,3338.8,3338.0,3.6532]
[1735725779832,3.53359488,3338.8,3338.7,2.58087644]
[1735725780031,3.53359488,3338.8,3338.7,3.78387644]
[1735725780828,0.8505,3338.8,3338.7,3.78387644]
[1735725781134,1.3127,3338.8,3338.7,3.78387644]
[1735725790842,24.95010512,3339.3,3339.2,0.30004]
[1735725791145,24.95010512,3339.3,3339.2,2.58082644]
[1735725794055,0.30005,3339.2,3339.1,1.202]
[1735725794650,0.30005,3339.2,3339.0,0.30006]
[1735725795249,25.25014512,3339.3,3339.1,0.30005]
[1735725796046,24.95010512,3339.3,3338.6,2.28078644]
[1735725796254,3.50787,3339.0,3338.7,1.50208]
[1735725796551,3.50787,3339.0,3338.8,0.30008]
[1735725797347,3.2078,3339.0,3338.3,2.28078644]
[1735725797552,0.30011,3338.5,3338.4,1.50211]
[1735725797757,8.2078,3339.0,3338.4,1.202]
[1735725797956,0.30009,3338.7,3338.5,0.3001]
[1735725798854,0.30009,3338.7,3338.4,1.202]
[1735725799155,0.30008,3338.8,3338.7,0.30008]
[1735725799357,0.30007,3338.9,3338.7,0.30008]
[1735725799955,0.30008,3338.8,3338.7,0.30008]
[1735725800156,0.30008,3338.8,3338.6,2.28078644]
[1735725800157,0.30009,3338.7,3338.6,2.28078644]
[1735725800459,0.30009,3338.7,3338.6,2.58088644]
[1735725801751,0.30009,3338.7,3338.6,2.28078644]
[1735725802159,6.74139488,3339.0,3338.4,1.202]
[1735725802355,0.30008,3338.8,3338.6,0.30009]
[1735725802555,0.30008,3338.8,3338.6,2.58087644]
[1735725805155,3.83367488,3338.8,3338.6,2.58087644]
[1735725807162,0.30009,3338.7,3338.6,0.30009]
[1735725807359,3.83367488,3338.8,3338.6,0.30009]
[1735725807660,0.30009,3338.7,3338.4,1.202]
[1735725808262,3.53359488,3338.8,3338.4,1.202]
[1735725808263,3.53359488,3338.8,3338.6,2.28078644]
[1735725808462,3.53359488,3338.7,3338.6,2.58088644]
[1735725809762,3.83368488,3338.7,3338.6,2.58088644]
[1735725810259,3.83368488,3338.7,3338.6,0.3001]
[1735725810464,3.83368488,3338.7,3338.5,0.3001]
[1735725811161,3.83368488,3338.7,3338.6,0.3001]
[1735725812465,3.53359488,3338.7,3338.6,0.3001]
[1735725813164,3.53359488,3338.7,3338.6,2.58088644]
[1735725813368,3.53359488,3338.7,3338.6,0.3001]
[1735725813962,4.70074516,3338.8,3338.7,0.30009]
[1735725814163,4.70074516,3338.8,3338.7,2.58087644]
[1735725814370,4.70074516,3338.8,3338.7,1.37899051]
[1735725815459,3.83519478,3338.9,3338.2,0.30013]
[1735725815460,0.30011,3338.4,3338.2,0.30013]
[1735725815660,0.30011,3338.5,3338.3,1.07890051]
[1735725815859,0.30011,3338.5,3338.2,0.30013]
[1735725815860,0.30011,3338.5,3338.4,1.07890051]
[1735725816362,6.74292478,3338.9,3338.4,1.37901051]
[1735725816562,6.74292478,3338.9,3338.7,1.07890051]
[1735725816563,6.2067047,3338.8,3338.7,1.07890051]
[1735725819173,4.71470012,3338.8,3338.7,1.37899051]
[1735725820470,3.53598547,3338.8,3338.7,2.57924063]
[1735725820864,3.53598547,3338.8,3338.7,3.78224063]
[1735725821667,3.2078,3338.9,3338.7,3.48215063]
[1735725821869,3.2078,3338.9,3338.8,0.30008]
[1735725827672,4.71470012,3339.0,3338.9,0.30007]
[1735725827869,4.71470012,3339.0,3338.9,0.29818259]
[1735725828673,4.71470012,3339.2,3339.1,0.30005]
[1735725828974,4.71470012,3339.2,3339.1,2.57920063]
[1735725829278,0.30005,3339.1,3338.8,6.98902063]
[1735725830378,5.9066247,3339.3,3338.8,6.68895063]
[1735725830578,0.30005,3339.2,3339.0,0.30006]
[1735725830772,0.30005,3339.2,3338.9,0.30006]
[1735725830974,5.9066247,3339.3,3338.8,6.68895063]
[1735725831272,5.01495205,3339.1,3338.9,0.30007]
[1735725832071,4.71489205,3339.0,3338.9,0.30007]
[1735725833574,4.71489205,3339.0,3338.8,3.78122063]
[1735725833772,5.01495205,3339.0,3338.8,3.78122063]
[1735725834166,4.71489205,3339.0,3338.8,2.27915063]
[1735725834379,4.71489205,3339.0,3338.5,3.48115063]
[1735725834577,3.83654635,3339.0,3338.5,3.48115063]
[1735725834773,0.30007,3338.9,3338.7,0.30008]
[1735725834973,3.53647635,3339.0,3338.5,3.48115063]
[1735725835278,0.30008,3338.9,3338.6,0.30009]
[1735725835681,3.83655635,3338.9,3338.6,0.30009]
[1735725836476,3.83655635,3338.9,3338.7,0.30009]
[1735725836888,3.53647635,3338.9,3338.7,0.30008]
[1735725837083,3.53647635,3338.8,3338.6,0.30009]
[1735725837478,3.53647635,3338.8,3338.7,0.30009]
[1735725838886,3.96457635,3338.8,3338.7,0.30009]
[1735725840183,3.96457635,3338.8,3338.7,1.37906697]
[1735725840580,3.53647635,3338.8,3338.7,1.37906697]
[1735725841085,3.53647635,3338.9,3338.8,0.30008]
[1735725841588,3.53647635,3338.9,3338.8,0.73718]
[1735725842783,3.53647635,3338.9,3338.8,3.94498]
[1735725843190,3.53647635,3338.9,3338.8,0.73718]
[1735725844281,3.53647635,3338.9,3338.8,3.94498]
[1735725845687,3.53647635,3339.0,3338.9,0.30007]
[1735725845896,3.53647635,3339.0,3338.9,1.37904697]
[1735725846192,3.53647635,3339.0,3338.9,2.90432394]
[1735725846393,3.53647635,3339.0,3338.9,1.82534697]
[1735725847090,3.53647635,3339.1,3338.9,1.52527697]
[1735725847398,3.53647635,3339.1,3339.0,1.37903697]
[1735725849488,0.4241,3339.2,3339.1,0.30005]
[1735725850291,3.6319,3339.2,3338.7,4.70779712]
[1735725850597,7.16837635,3339.2,3338.6,5.78677409]
[1735725850988,3.50789,3338.7,3338.6,4.70779712]
[1735725851898,0.3001,3338.6,3338.4,0.30011]
[1735725852396,0.3001,3338.6,3338.5,1.07897697]
[1735725852895,5.01499205,3338.6,3338.4,0.30011]
[1735725854291,4.71489205,3338.6,3338.4,0.30011]
[1735725854492,5.01499205,3338.6,3338.4,0.30011]
[1735725855195,5.01499205,3338.6,3338.3,1.07897697]
[1735725855395,5.01499205,3338.6,3338.4,0.30012]
[1735725855896,5.01499205,3338.6,3338.5,0.30011]
[1735725856797,5.01499205,3338.6,3338.4,0.30011]
[1735725857099,0.30011,3338.5,3338.4,0.30011]
[1735725857293,5.01499205,3338.6,3338.4,0.30011]
[1735725858196,0.30011,3338.5,3338.4,0.30011]
[1735725858397,5.01499205,3338.6,3338.4,0.30011]
[1735725858693,4.71489205,3338.6,3338.3,1.07897697]
[1735725858892,0.30011,3338.5,3338.4,0.30011]
[1735725859094,4.71489205,3338.6,3338.4,0.30011]
[1735725859396,5.01499205,3338.6,3338.4,0.30011]
[1735725859897,5.01499205,3338.6,3338.3,1.07897697]
[1735725859898,1.07897697,3338.5,3338.0,1.07897697]
[1735725860095,3.2078,3338.3,3338.0,1.07897697]
[1735725860302,0.4292,3338.2,3338.0,1.07897697]
[1735725860596,0.72934,3338.2,3338.0,1.37912697]
[1735725861699,3.53698664,3338.1,3338.0,1.37912697]
[1735725862292,3.53698664,3338.1,3338.0,1.07897697]
[1735725862690,0.30014,3338.1,3338.0,1.07897697]
[1735725862894,5.14409205,3338.2,3338.0,1.37912697]
[1735725863099,5.44423205,3338.2,3338.0,1.37912697]
[1735725863994,0.30016,3338.0,3337.7,1.37914697]
[1735725864202,0.4459,3337.9,3337.7,1.37914697]
[1735725864395,0.9114,3337.9,3337.7,1.37914697]
[1735725864696,0.9114,3337.9,3337.7,1.07897697]
[1735725864898,4.1192,3337.9,3337.8,1.07897697]
[1735725865104,4.41937,3337.9,3337.8,1.07897697]
[1735725867293,4.1192,3337.9,3337.6,1.07897697]
[1735725867601,0.30019,3337.6,3337.5,1.07897697]
[1735725867797,5.19817697,3337.9,3337.3,1.07897697]
[1735725868099,5.19817697,3337.9,3337.4,0.30021]
[1735725868100,0.889,3337.5,3337.4,0.30021]
[1735725870097,0.4485,3337.5,3337.4,0.30021]
[1735725870298,0.4485,3337.5,3337.4,0.74571]
[1735725871103,0.4405,3337.8,3337.7,0.30018]
[1735725871306,0.4405,3337.8,3337.7,1.37915697]
[1735725871508,4.1192,3337.9,3337.8,0.30017]
[1735725871807,0.9114,3337.9,3337.8,0.30017]
[1735725873101,0.30017,3337.8,3337.6,0.30018]
[1735725873305,0.30017,3337.8,3337.7,0.30018]
[1735725873700,1.21156,3337.9,3337.7,0.30018]
[1735725873897,0.9114,3337.9,3337.8,0.30017]
[1735725876105,0.4655,3337.9,3337.8,0.30017]
[1735725876299,0.4598,3338.1,3337.7,2.28065347]
[1735725876300,0.4598,3338.1,3338.0,0.30015]
[1735725876808,0.8927,3338.3,3338.2,0.30013]
[1735725877105,0.30011,3338.5,3337.8,1.6499]
[1735725877106,0.4445,3338.5,3338.0,2.28065347]
[1735725877307,6.74301383,3338.6,3338.5,0.30011]
[1735725877900,7.04311383,3338.6,3338.5,0.30011]
[1735725878104,6.74301383,3338.6,3338.5,0.30011]
[1735725878603,3.2078,3338.6,3338.5,0.30011]
[1735725881506,3.5079,3338.6,3338.5,0.30011]
[1735725882313,3.2078,3338.6,3338.5,0.30011]
[1735725885411,6.74301383,3338.6,3338.5,0.30011]
[1735725886609,3.2078,3338.6,3338.5,0.30011]
[1735725888317,3.5079,3338.6,3338.5,0.30011]
[1735725889916,0.30013,3338.3,3338.2,0.30013]
[1735725891122,0.887,3338.4,3338.2,0.30013]
[1735725891319,0.887,3338.4,3338.1,1.202]
[1735725891614,0.30015,3338.1,3337.9,0.30015]
[1735725894014,0.30014,3338.2,3338.0,0.30015]
[1735725896024,3.53521383,3338.3,3338.2,0.30013]
[1735725896925,5.60189205,3338.4,3337.9,2.28065347]
[1735725897129,5.60189205,3338.4,3338.3,0.30012]
[1735725898223,0.887,3338.4,3338.3,0.30012]
[1735725899630,5.15179205,3338.5,3338.4,0.30012]
[1735725900829,5.60629205,3338.5,3338.4,0.30012]
[1735725901028,0.8914,3338.5,3338.4,0.30012]
[1735725901627,8.34899205,3338.6,3338.5,0.30011]
[1735725902237,8.34899205,3338.6,3338.5,1.37933221]
[1735725903830,7.1724296,3338.6,3338.5,1.37933221]
[1735725904030,3.5383296,3338.6,3338.5,2.58033221]
[1735725905036,3.9855296,3339.0,3338.9,0.30007]
[1735725905236,3.9855296,3339.0,3338.9,1.37929221]
[1735725906240,3.9855296,3339.0,3338.9,0.30007]
[1735725906438,0.4472,3339.0,3338.9,0.30007]
[1735725913345,0.8915,3339.1,3339.0,0.30006]
[1735725916440,4.2853696,3339.3,3338.8,2.27910665]
[1735725916441,3.9853296,3339.3,3338.8,2.27910665]
[1735725916645,0.8953,3339.2,3339.1,0.30005]
[1735725917048,4.4336296,3339.2,3339.1,0.30005]
[1735725923352,0.30006,3339.1,3339.0,0.30007]
[1735725924253,4.4336296,3339.2,3339.1,0.30006]
[1735725925550,0.8953,3339.2,3339.1,0.30006]
[1735725928256,0.8953,3339.2,3339.1,1.37876275]
[1735725931160,0.8953,3339.2,3339.1,0.30006]
[1735725935049,3.9853296,3339.3,3339.2,0.30005]
[1735725935258,3.9853296,3339.3,3339.2,1.37875275]
[1735725936856,0.447,3339.3,3339.2,1.37875275]
[1735725939656,3.5383296,3339.5,3339.4,0.30003]
[1735725940164,4.8720296,3339.6,3339.5,0.30003]
[1735725940848,4.8720296,3339.6,3339.5,1.37873275]
[1735725941053,1.3337,3339.6,3339.5,1.37873275]
[1735725943360,4.71489205,3339.7,3339.6,0.30002]
[1735725943662,5.9066247,3339.8,3339.6,2.45395568]
[1735725943863,5.9066247,3339.8,3339.7,2.15636843]
[1735725945362,5.9066247,3339.8,3339.7,1.80181275]
[1735725945567,5.9066247,3339.8,3339.7,1.37871275]